Cogmind - Beta 14 @@@ ROGUE MODE // 2025.03.06 @ 22:08:03 Player: CLown Bot Result: Destroyed by G-34 Mercenary with Small Laser Performance ------------- Evolutions (1) 500 Regions Visited (2) 400 Robots Destroyed (46) 230 Value Destroyed (580) 580 Prototype IDs (0) 0 Alien Tech Used (0) 0 Bonus (0) 0 TOTAL SCORE: 1710 Bonus ------- None Cogmind --------- Core Integrity 0/400 Matter 495/500 Energy 100/100 System Corruption 1% Temperature Cool (6) Movement Core (100) Ox1 Location -9/Materials Parts ------- > --- POWER (1) -------- (None) > --- PROPULSION (4) --- (None) > --- UTILITY (2) ------ High-capacity Matter Pod Machine Analyzer > --- WEAPON (2) ------- (None) > --- INVENTORY (5) ---- Light Nuclear Core Medium Storage Unit Recalibrator Peak State ------------ > --- POWER ------------ Improved Ion Engine > --- PROPULSION ------- Light Treads Aluminum Leg > --- UTILITY ---------- High-capacity Matter Pod Machine Analyzer > --- WEAPON ----------- Particle Gun Autogun > --- INVENTORY -------- Medium Storage Unit Recalibrator Medium Laser Assault Rifle Mining Laser [Rating: 12] Favorites ----------- Power Light Ion Engine Engine Light Ion Engine Propulsion Aluminum Leg Treads Light Treads Leg Aluminum Leg Wheel Wheel Utility High-capacity Matter Pod Storage High-capacity Matter Pod Processor Machine Analyzer Weapon Autogun Energy Gun Particle Gun Ballistic Gun Autogun Special Weapon Mining Laser Build | -11 -10 -9 ------- Run | Yrd Mat Mat Slots Evolved 2 | . . 2 Power . | . . . Propulsion 2 | . . 2 Utility . | . . . Weapon . | . . . Parts Attached 17 | 4 9 4 Power 3 | 1 1 1 Engine 3 | 1 1 1 Core . | . . . Reactor . | . . . Propulsion 4 | 2 2 . Treads 1 | . 1 . Leg 2 | 1 1 . Wheel 1 | 1 . . Hover . | . . . Flight . | . . . Utility 2 | . 2 . Device . | . . . Storage 1 | . 1 . Processor 1 | . 1 . Hackware . | . . . Protection . | . . . Artifact . | . . . Weapon 8 | 1 4 3 Energy Gun 3 | 1 1 1 Energy Cannon . | . . . Ballistic Gun 3 | . 2 1 Ballistic Cannon . | . . . Launcher . | . . . Special Weapon 2 | . 1 1 Impact Weapon . | . . . Slashing Weapon . | . . . Piercing Weapon . | . . . Special Melee Weapon . | . . . Unidentified Prototypes . | . . . Parts Lost 11 | . 3 8 Power 1 | . . 1 Propulsion 4 | . 2 2 Utility . | . . . Weapon 6 | . 1 5 Highest Loss Streak 7 | . 2 7 To Critical Strikes . | . . . Average Slot Usage (%) 71 | . 72 65 Engine 13 | . 14 8 Treads 7 | . 7 9 Leg 10 | . 11 8 Wheel 1 | . 1 . Storage 8 | . 7 11 Processor 3 | . 2 11 Energy Gun 13 | . 14 9 Ballistic Gun 11 | . 12 8 Peak Build Rating 12 | 4 11 12 Average Rating 6 | 3 7 9 On Entrance 5 | . 4 11 Naked Turns . | . . . Heaviest Build 17 | 5 15 17 Greatest Support 10 | 10 10 10 Greatest Overweight (x) 2 | . 2 2 Average Overweight (x) . | . . 1 Largest Inventory Capacity 5 | 5 5 5 Average Capacity 5 | 5 5 5 Most Carried 5 | 5 5 5 Average Carried 3 | 1 4 4 Final Capacity 5 | 5 5 5 Final Carried 5 | 2 5 3 Class Distribution -------------------- 100% | Mutant Dominant Class ---------------- Mutant | -10/Materials Mutant | -9/Materials Resources | -11 -10 -9 ----------- Run | Yrd Mat Mat Matter Collected 899 | 240 551 108 Remotely . | . . . Salvage Created 1269 | 74 1066 129 Parts 91 | 5 79 7 Haulers Intercepted 2 | . 2 . Recyclers Shooed 11 | . 10 1 Parts Field Recycled . | . . . Retrieved Matter . | . . . Parts Self-Destructed . | . . . Prevented . | . . . Kills | -11 -10 -9 ------- Run | Yrd Mat Mat Combat Hostiles Destroyed 11 | 1 7 3 Guns 11 | 1 7 3 Classes Destroyed 10 | 3 6 1 Worker 13 | 1 12 . Builder 9 | . 9 . Tunneler 2 | 1 1 . Hauler 2 | . 2 . Recycler 5 | . 5 . Mechanic 1 | . 1 . Watcher 3 | . 3 . Swarmer 3 | . 3 . Grunt 7 | 1 4 2 Sentry 1 | . . 1 Best Kill Streak 9 | 2 9 2 Combat Bots Only 3 | 1 3 2 Max Kills in Single Turn 2 | 1 2 1 Gunslinging 1 | . 1 . Exploded . | . . . Melee . | . . . Uniques/NPCs Destroyed . | . . . Combat | -11 -10 -9 -------- Run | Yrd Mat Mat Hostile Shots Fired 181 | 4 85 92 Missed 56 | 1 32 23 Damage Taken 1618 | 31 656 931 Core 612 | 10 195 407 Absorbed by Shields . | . . . Core Remaining (%) 57 | 96 18 . Volleys Fired 130 | 12 100 18 Largest 2 | 1 2 2 Hottest 165 | 50 165 100 Shots Fired 231 | 12 191 28 Gun 227 | 12 188 27 Cannon . | . . . Launcher . | . . . Special 4 | . 3 1 Kinetic 104 | . 90 14 Thermal 127 | 12 101 14 Explosive . | . . . Electromagnetic . | . . . Robot Hit Streak 12 | 2 12 5 Robot Miss Streak 6 | 2 6 4 Penetration Max . | . . . Secondary Targets 3 | . 2 1 Max Gunslinging Chain 1 | . 1 1 Shots Hit Robots 118 | 7 95 16 Core Hits 55 | 4 45 6 Critical Kills . | . . . Critical Parts Destroyed . | . . . Critical Strikes 3 | . 3 . Burn 3 | . 3 . Melee Attacks . | . . . Impact . | . . . Slashing . | . . . Piercing . | . . . Sneak Attacks . | . . . Combat Hostiles . | . . . Follow-up Attacks . | . . . Damage Inflicted 2036 | 87 1673 276 Guns 1783 | 87 1428 268 Cannons . | . . . Explosions 219 | . 219 . Melee . | . . . Ramming 10 | . 2 8 Kinetic 823 | . 684 139 Thermal 984 | 87 768 129 Explosive 219 | . 219 . Electromagnetic . | . . . Impact . | . . . Slashing . | . . . Piercing . | . . . Highest Corruption 1 | . . 1 Average Corruption 1 | . . 1 Corruption Purged . | . . . Corruption Blocked . | . . . Effects 1 | . . 1 Message Errors 1 | . . 1 Overload Shots . | . . . Overflow Damage 57 | . 57 . Projectiles . | . . . Explosions 57 | . 57 . Melee . | . . . Knockbacks . | . . . Impact . | . . . Kinetic . | . . . Secondary . | . . . Self-Inflicted Damage 123 | . 120 3 Shots 2 | . 2 . Rammed 3 | . . 3 Targets Rammed 4 | . 1 3 Kicked 1 | . 1 . Crushed . | . . . Highest Temperature 256 | 42 256 113 Average Temperature 70 | 12 75 58 Received Heat Transfer 711 | 18 174 519 Effects 1 | . 1 . Energy Bleed 1 | . 1 . Siege Activations . | . . . Robots Corrupted . | . . . Combat Hostiles . | . . . Parts Fried . | . . . Impact Corruptions . | . . . Robots Melted . | . . . Combat Hostiles . | . . . Parts Melted 3 | 1 2 . Heat Transferred 2714 | 259 2122 333 Parts Sabotaged . | . . . Parts Stolen . | . . . Parts Stripped . | . . . Power Chain Reactions . | . . . Alert | -11 -10 -9 ------- Run | Yrd Mat Mat Peak Influence 362 | 30 362 181 Initial 96 | . 19 96 Average 147 | 13 179 137 Maximum Alert Level 1 | . 1 . Low Security (%) 61 | 100 45 100 Level 1 38 | . 54 . Level 2 . | . . . Level 3 . | . . . Level 4 . | . . . Level 5 . | . . . High Security . | . . . Max Security . | . . . Squads Dispatched 2 | . 1 1 Investigation 2 | . 1 1 Extermination . | . . . Reinforcement . | . . . Assault . | . . . Garrison . | . . . Intercept . | . . . Searches Triggered . | . . . Construction Impeded . | . . . Haulers Reinforced . | . . . Active Scanning Responses . | . . . Cargo Convoy Interrupts . | . . . Stealth | -11 -10 -9 --------- Run | Yrd Mat Mat Distress Signals 2 | . 2 . Communications Jammed . | . . . Distress Signals . | . . . Times Spotted 28 | 1 18 9 Peak Tracking Total 7 | 1 5 7 Tactical Retreats 2 | . . 2 Traps | -11 -10 -9 ------- Run | Yrd Mat Mat Traps Triggered 2 | . 1 1 Indirectly . | . . . Trap Hack Attempts . | . . . Triggered . | . . . Disarmed . | . . . Reprogrammed . | . . . Reused . | . . . Traps Extracted . | . . . Installed . | . . . Triggered . | . . . Machines | -11 -10 -9 ---------- Run | Yrd Mat Mat Machines Disabled 10 | . 10 . Max in Single Turn 2 | . 2 . Machines Repaired . | . . . Machines Dismantled . | . . . Machines Sabotaged . | . . . Overloaded Fab Kills . | . . . Hacking | -11 -10 -9 --------- Run | Yrd Mat Mat Machines Accessed 2 | . 2 . Terminals 2 | . 2 . Fabricators . | . . . Repair Stations . | . . . Recycling Units . | . . . Scanalyzers . | . . . Garrison Access . | . . . Total Hacks 4 | . 4 . Successful 1 | . 1 . Failed 3 | . 3 . Catastrophic . | . . . Database Lockouts . | . . . Manual 1 | . 1 . Terminals 4 | . 4 . Fabricators . | . . . Repair Stations . | . . . Recycling Units . | . . . Scanalyzers . | . . . Garrison Access . | . . . Terminal Hacks 1 | . 1 . Alert Level 1 | . 1 . Fabricator Hacks . | . . . Repair Station Hacks . | . . . Recycling Unit Hacks . | . . . Scanalyzer . | . . . Garrison Access Hacks . | . . . Unauthorized Hacks . | . . . Terminals . | . . . Fabricators . | . . . Repair Stations . | . . . Recycling Units . | . . . Scanalyzers . | . . . Garrison Access . | . . . Data Cores Recovered . | . . . Used . | . . . Hacking Detections 2 | . 2 . Full Trace Events 1 | . 1 . Feedback Events . | . . . Feedback Blocked . | . . . Robot Schematics Acquired . | . . . Robots Built . | . . . Authchips . | . . . Time . | . . . Total Robot Build Rating . | . . . Part Schematics Acquired . | . . . Parts Built . | . . . Authchips . | . . . Time . | . . . Total Part Build Rating . | . . . Parts Repaired . | . . . Time . | . . . Parts Recycled . | . . . Recycled Matter . | . . . Retrieved Matter . | . . . Retrieved Components . | . . . Parts Scanalyzed . | . . . Part Schematics Acquired . | . . . Parts Damaged . | . . . Bothacking | -11 -10 -9 ------------ Run | Yrd Mat Mat Used RIF Installer . | . . . Robots Hacked . | . . . Non-combat . | . . . Combat . | . . . Robot Hacks Applied . | . . . Relay Couplers Released . | . . . Fabnet Peak Effective % . | . . . Robots Rewired . | . . . Allies Hacked . | . . . Hacks Repelled . | . . . Allies | -11 -10 -9 -------- Run | Yrd Mat Mat Total Allies . | . . . Largest Group . | . . . Highest-Rated Group . | . . . Highest-Rated Ally . | . . . Total Orders . | . . . Ally Attacks . | . . . Total Damage . | . . . Kills . | . . . Allies Corrupted . | . . . Allies Melted . | . . . Intel | -11 -10 -9 ------- Run | Yrd Mat Mat Robot Analysis Total . | . . . Derelict Logs Recovered . | . . . Drone Launches . | . . . Drone Recoveries . | . . . Exploration | -11 -10 -9 ------------- Run | Yrd Mat Mat Turns Passed 1354 | 210 950 194 Spaces Moved 671 | 181 412 78 Core 128 | 58 58 12 Treads . | . . . Legs 543 | 123 354 66 Wheels . | . . . Hover . | . . . Flight . | . . . Fastest Speed 50 | 50 100 100 Average Speed 144 | 97 158 176 Slowest Speed 190 | 120 190 190 Overloaded Moves . | . . . Propulsion Burnouts . | . . . Robots Hopped . | . . . Cave-ins Triggered 1 | . 1 . Exploration Rate (%) 15 | 5 37 5 Regions Visited 2 Branch Regions . Pre-discovered Areas . | . . . Known Exits Taken . | . . . Unknown Exits Taken 2 | 1 1 . Scrap Searched . | . . . Spaces Dug . | . . . Terrain Destroyed 40 | . 40 . Melee . | . . . Projectile 1 | . 1 . AOE 39 | . 39 . Terrain Rammed . | . . . Walls Destroyed . | . . . Machines Disabled . | . . . Actions | -11 -10 -9 --------- Run | Yrd Mat Mat Total 836 | 202 529 105 Wait . | . . . Move 669 | 180 411 78 Hop . | . . . Pick Up 14 | 6 7 1 Fast Attach 2 | . 2 . Attach 11 | 4 4 3 Detach . | . . . Swap 4 | . 3 1 Drop 2 | . 1 1 Fire 130 | 12 100 18 Melee . | . . . Ram 3 | . . 3 Kick 1 | . 1 . Crush . | . . . Escape Stasis . | . . . Rewire . | . . . Trap . | . . . Miscellaneous . | . . . Route ------- -11/Scrapyard -10/Materials -9/Materials History --------- Turn | Location | Event 2 | -11/Scrapyard | Met Revision 17 32 | -11/Scrapyard | Discovered new exit (range 8) 211 | -11/Scrapyard | Entered Materials 306 | -10/Materials | Build established: Mutant 482 | -10/Materials | Core integrity fell below 50% 539 | -10/Materials | Crushed by falling debris 807 | -10/Materials | Core integrity fell below 20% 1136 | -10/Materials | Discovered new exit (range 13) 1161 | -10/Materials | Entered another Materials area 1161 | -9/Materials | Evolved 2 slots: Propulsion x2 1332 | -9/Materials | Core integrity fell below 50% 1348 | -9/Materials | Core integrity fell below 20% 1355 | -9/Materials | Destroyed by G-34 Mercenary with Small Laser Last Messages --------------- G-47 Trooper destroyed. G-34 Mercenary destroyed. Switching to secondary target: G-47 Trooper. Critical hit (Burn: +37). Imp. Ion Engine destroyed. Lgt. Treads destroyed. Destroyed Lgt. Nuclear Core. R-06 Scavenger collects Aluminum Leg. R-06 Scavenger collects Ion Engine. Med. Laser destroyed. Assault Rifle destroyed. Mining Laser destroyed. R-06 Scavenger collects Heat Sink. Slammed into R-06 Scavenger. Destabilizing: System corrupted (+1). Acquired 55 matter. Slammed into R-06 Scavenger. EZLW8L XBP6AXX3 DWPR|TGX9UWUDHQ GL Acquired Lgt. Nuclear Core. R-06 Scavenger collects Lgt. Armor Plating. Map ----- +----------------------------------------------------+ | ???????????????????????????????????????????? | | ???????????????????????????????????????????? | | ???????????????????????????????????????????? | | ???????????????????????????????????????????? | | ???????????????????????????????????????????? | | ???????????????????????????????????????????? | | ???????????????????????????????????????????? | | ???????????????????????????????????????????? | | ???????????????????????????????????????????? | | ???????????????????????????????????????????? | | ???????????????????????????????????????????? | | ???????????????????????????????????????????? | | ???????????????????????????????????????????? | | ???????????????????????????????????????????? | | ???????????????????????????????????????????? | | ???????????????????????????????????????????? | | ???????????????????????????????????????????? | | ???????????????????????????????????????????? | | ?????????#####?????????????????????????????? | | #### ###################???????????? | | / + %= #???????????? | | #### #####%g / #???????????? | | ?????????# #???# g ! #???????????? | | ?????????# #???# r = #???????????? | | ?????????# "#???# ! #???????????? | | ?????????# "%#???# %*=@ #???????????? | | ????????? " ##########+###########???????? | | ????????# #???????? | | ????????+ #???????? | | ????????# #???????? | | ????????# ###+#############+####???????? | | ????????######?????????????????????????????? | | ???????????????????????????????????????????? | | ???????????????????????????????????????????? | | ???????????????????????????????????????????? | | ???????????????????????????????????????????? | | ???????????????????????????????????????????? | | ???????????????????????????????????????????? | | ???????????????????????????????????????????? | | ???????????????????????????????????????????? | | ???????????????????????????????????????????? | | ???????????????????????????????????????????? | | ???????????????????????????????????????????? | | ???????????????????????????????????????????? | | ???????????????????????????????????????????? | | ???????????????????????????????????????????? | | ???????????????????????????????????????????? | | ???????????????????????????????????????????? | | ???????????????????????????????????????????? | | ???????????????????????????????????????????? | +----------------------------------------------------+ Best States ------------- Heat Dissipation 28 Energy Generation 12 Energy Capacity 265 Matter Stores 495 Matter Capacity 500 Sight Range 16 Terrain Scan Density 10 Evasion (%) 55 Item Schematics ----------------- None Robot Schematics ------------------ None Fabricated ------------ Nothing Alien Tech Used ----------------- None Achievements -------------- Crack Shot Hey, That's Mine! Loot Pinata Unlikely Earthworm Challenges ------------ None Game ------ Seed InertialLargeDevice Manual? 0 Play Time 00:14:14 Cumulative 0.4 hours Start 2025.03.06 @ 21:55:52 End 2025.03.06 @ 22:08:03 Sessions 1 Manual Loads 0 Difficulty Rogue Special Mode None Game No. 3 Rogue 3 Adventurer 0 Explorer 0 Win Type - Total 0 Types 0/0/0/0/0/0/0/0/0 Lore% 0 Gallery% 1 Achievement% 2 Wizard Run 0 Options --------- Layout 1 ASCII 0 Keyboard 0 Movement Mouse Keybinds 0 Fullscreen 2 Font 24/Smallcaps Map View 50x35 Zoom Use 0% Tactical HUD 0 Map Filters NONE Filters NONE Steam 1 RUN: 450caa42-c707-4c53-b925-6ea574c4dcb6